fUSD/lending_fUSD_20250312
["ID","MTS","AMOUNT","RATE_DAILY","PERIOD"]
[356028688,1741806643521,-150.0,0.00027767,2]
[356028691,1741806643530,-150.0,0.0002777,2]
[356028694,1741806643539,-150.0,0.00027774,2]
[356028697,1741806643548,-150.0,0.00027792,2]
[356028700,1741806643557,-150.0,0.00027793,2]
[356028703,1741806643567,-150.0,0.00027794,2]
[356028706,1741806643575,-150.0,0.00027797,2]
[356028709,1741806643584,-1568.0,0.00027814,2]
[356028712,1741806643593,-150.0,0.00027818,2]
[356028715,1741806643603,-150.0,0.00027822,2]
[356028717,1741806643613,-391.0,0.0002783,15]
[356028719,1741806643622,-150.0,0.00027843,2]
[356028721,1741806643631,-150.0,0.00027857,2]
[356028723,1741806643640,-150.0,0.00027866,2]
[356028725,1741806643649,-150.0,0.00027869,2]
[356028727,1741806643658,-150.0,0.00027877,2]
[356028729,1741806643668,-150.0,0.00027894,2]
[356028731,1741806643677,-150.0,0.00027903,2]
[356028733,1741806643686,-150.0,0.00027919,2]
[356028735,1741806643695,-150.0,0.00027922,2]
[356028737,1741806643705,-150.0,0.00027932,2]
[356028739,1741806643714,-150.0,0.00027934,2]
[356028741,1741806643723,-350.0,0.00027945,2]
[356028743,1741806643732,-150.0,0.00027956,2]
[356028745,1741806643741,-150.0,0.00027962,2]
[356028747,1741806643750,-150.0,0.00027996,2]
[356028749,1741806643760,-5762.99051801,0.00027998,31]
[356028751,1741806643770,-12785.20933841,0.00027998,31]
[356028753,1741806643779,-150.0,0.00028001,2]
[356028755,1741806643788,-150.0,0.00028014,2]
[356028757,1741806643797,-431.41753903,0.00028027,7]
[356028759,1741806643807,-175.51031111,0.00028027,7]
[356028761,1741806643816,-150.0,0.00028027,7]
[356028763,1741806643825,-297.15866743,0.00028027,7]
[356028765,1741806643835,-150.0,0.00028027,7]
[356028767,1741806643844,-150.0,0.00028027,7]
[356028769,1741806643855,-431.41753903,0.00028034,7]
[356028771,1741806643864,-175.51031111,0.00028034,7]
[356028773,1741806643873,-297.15866743,0.00028034,7]
[356028775,1741806643882,-431.41753903,0.00028041,7]
[356028777,1741806643891,-175.51031111,0.00028041,7]
[356028779,1741806643900,-297.15866743,0.00028041,7]
[356028781,1741806643909,-150.0,0.00028043,7]
[356028783,1741806643918,-431.41753903,0.00028048,7]
[356028785,1741806643927,-175.51031111,0.00028048,7]
[356028786,1741806643937,-297.15866743,0.00028048,7]
[356028788,1741806643946,-150.0,0.00028051,2]
[356028790,1741806643955,-300.0,0.00028052,2]
[356028793,1741806643965,-431.41753903,0.00028054,7]
[356028794,1741806643974,-175.51031111,0.00028054,7]
[356028796,1741806643983,-297.15866743,0.00028054,7]
[356028798,1741806643993,-150.0,0.00028058,2]
[356028800,1741806644002,-150.0,0.00028059,2]
[356028802,1741806644012,-150.0,0.00028059,7]
[356028804,1741806644021,-150.0,0.00028061,2]
[356028806,1741806644030,-431.41753903,0.00028061,7]
[356028808,1741806644039,-175.51031111,0.00028061,7]
[356028810,1741806644048,-297.15866743,0.00028061,7]
[356028811,1741806644057,-150.0,0.00028062,2]
[356028812,1741806644066,-150.0,0.00028067,2]
[356028813,1741806644075,-431.41753903,0.00028068,7]
[356028814,1741806644084,-175.51031111,0.00028068,7]
[356028815,1741806644093,-297.15866743,0.00028068,7]
[356028816,1741806644102,-431.41753903,0.00028075,7]
[356028817,1741806644111,-175.51031111,0.00028075,7]
[356028818,1741806644120,-297.15866743,0.00028075,7]
[356028819,1741806644130,-150.0,0.00028075,7]
[356028820,1741806644139,-431.41753903,0.00028082,7]
[356028821,1741806644148,-175.51031111,0.00028082,7]
[356028822,1741806644157,-297.15866743,0.00028082,7]
[356028823,1741806644167,-150.0,0.00028084,2]
[356028824,1741806644175,-431.41753903,0.00028088,7]
[356028825,1741806644184,-175.51031111,0.00028088,7]
[356028826,1741806644193,-297.15866743,0.00028088,7]
[356028827,1741806644202,-150.0,0.00028091,7]
[356028828,1741806644211,-431.41753903,0.00028095,7]
[356028829,1741806644220,-175.51031111,0.00028095,7]
[356028830,1741806644229,-297.15866743,0.00028095,7]
[356028831,1741806644238,-1568.0,0.00028101,2]
[356028832,1741806644250,-431.41753903,0.00028102,7]
[356028833,1741806644259,-175.51031111,0.00028102,7]
[356028834,1741806644268,-297.15866743,0.00028102,7]
[356028835,1741806644277,-150.0,0.00028107,7]
[356028836,1741806644286,-431.41753903,0.00028109,7]
[356028837,1741806644294,-175.51031111,0.00028109,7]
[356028838,1741806644306,-297.15866743,0.00028109,7]
[356028839,1741806644315,-431.41753903,0.00028115,7]
[356028840,1741806644325,-175.51031111,0.00028115,7]
[356028841,1741806644334,-297.15866743,0.00028115,7]
[356028842,1741806644343,-431.41753903,0.00028122,7]
[356028844,1741806644353,-175.51031111,0.00028122,7]
[356028846,1741806644362,-297.15866743,0.00028122,7]
[356028848,1741806644371,-150.0,0.00028123,7]
[356028850,1741806644381,-150.0,0.00028126,2]
[356028851,1741806644390,-150.0,0.00028127,2]
[356028852,1741806644399,-431.41753903,0.00028129,7]
[356028853,1741806644408,-175.51031111,0.00028129,7]
[356028854,1741806644417,-297.15866743,0.00028129,7]
[356028855,1741806644426,-431.41753903,0.00028136,7]
[356028856,1741806644435,-175.51031111,0.00028136,7]
[356028857,1741806644444,-297.15866743,0.00028136,7]
[356028858,1741806644453,-150.0,0.00028136,2]
[356028859,1741806644463,-150.0,0.00028139,7]
[356028860,1741806644472,-431.41753903,0.00028142,7]
[356028861,1741806644481,-175.51031111,0.00028142,7]
[356028862,1741806644489,-297.15866743,0.00028142,7]
[356028863,1741806644498,-500.0,0.00028149,7]
[356028864,1741806644507,-431.41753903,0.00028149,7]
[356028865,1741806644516,-175.51031111,0.00028149,7]
[356028866,1741806644525,-297.15866743,0.00028149,7]
[356028867,1741806644535,-150.0,0.00028155,7]
[356028868,1741806644544,-431.41753903,0.00028156,7]
[356028870,1741806644553,-175.51031111,0.00028156,7]
[356028872,1741806644563,-297.15866743,0.00028156,7]
[356028873,1741806644572,-2000.0,0.00028159,4]
[356028874,1741806644581,-431.41753903,0.00028163,7]
[356028875,1741806644591,-175.51031111,0.00028163,7]
[356028876,1741806644600,-297.15866743,0.00028163,7]
[356028877,1741806644609,-431.41753903,0.00028169,7]
[356028878,1741806644618,-175.51031111,0.00028169,7]
[356028879,1741806644627,-297.15866743,0.00028169,7]
[356028880,1741806644636,-150.0,0.00028171,7]
[356028881,1741806644645,-150.0,0.00028171,2]
[356028882,1741806644654,-431.41753903,0.00028176,7]
[356028883,1741806644663,-175.51031111,0.00028176,7]
[356028884,1741806644672,-297.15866743,0.00028176,7]
[356028885,1741806644681,-150.0,0.0002818,2]
[356028886,1741806644691,-431.41753903,0.00028183,7]
[356028887,1741806644700,-175.51031111,0.00028183,7]
[356028888,1741806644709,-297.15866743,0.00028183,7]
[356028889,1741806644718,-150.0,0.00028183,2]
[356028890,1741806644727,-150.0,0.00028187,7]
[356028891,1741806644738,-431.41753903,0.0002819,7]
[356028892,1741806644751,-175.51031111,0.0002819,7]
[356028893,1741806644762,-297.15866743,0.0002819,7]
[356028894,1741806644771,-150.0,0.00028195,7]
[356028895,1741806644780,-150.0,0.00028195,2]
[356028896,1741806644790,-431.41753903,0.00028196,7]
[356028897,1741806644799,-175.51031111,0.00028196,7]
[356028898,1741806644808,-297.15866743,0.00028196,7]
[356028899,1741806644817,-150.0,0.00028203,7]
[356028900,1741806644827,-150.0,0.00028203,2]
[356028901,1741806644836,-431.41753903,0.00028203,7]
[356028902,1741806644845,-175.51031111,0.00028203,7]
[356028903,1741806644854,-297.15866743,0.00028203,7]
[356028904,1741806644863,-431.41753903,0.0002821,7]
[356028905,1741806644872,-175.51031111,0.0002821,7]
[356028906,1741806644882,-297.15866743,0.0002821,7]
[356028907,1741806644891,-150.0,0.00028214,2]
[356028908,1741806644900,-431.41753903,0.00028217,7]
[356028909,1741806644910,-175.51031111,0.00028217,7]
[356028910,1741806644919,-297.15866743,0.00028217,7]
[356028911,1741806644928,-150.0,0.00028219,7]
[356028912,1741806644937,-392.3956636,0.00028219,2]
[356028913,1741806644947,-431.41753903,0.00028224,7]
[356028914,1741806644955,-175.51031111,0.00028224,7]
[356028915,1741806644965,-297.15866743,0.00028224,7]
[356028916,1741806644975,-431.41753903,0.0002823,7]
[356028917,1741806644984,-175.51031111,0.0002823,7]
[356028918,1741806644994,-297.15866743,0.0002823,7]
[356028919,1741806645003,-150.0,0.00028235,7]
[356028920,1741806645012,-431.41753903,0.00028237,7]
[356028921,1741806645021,-175.51031111,0.00028237,7]
[356028922,1741806645031,-297.15866743,0.00028237,7]
[356028923,1741806645040,-150.0,0.00028241,2]
[356028924,1741806645049,-150.0,0.00028243,2]
[356028925,1741806645058,-431.41753903,0.00028244,7]
[356028926,1741806645067,-175.51031111,0.00028244,7]
[356028927,1741806645077,-297.15866743,0.00028244,7]
[356028928,1741806645086,-431.41753903,0.00028251,7]
[356028929,1741806645095,-175.51031111,0.00028251,7]
[356028930,1741806645106,-150.0,0.00028251,7]
[356028931,1741806645116,-297.15866743,0.00028251,7]
[356028932,1741806645125,-150.0,0.00028251,7]
[356028933,1741806645134,-150.0,0.00028252,2]
[356028934,1741806645144,-150.0,0.00028255,2]
[356028935,1741806645153,-431.41753903,0.00028257,7]
[356028936,1741806645162,-175.51031111,0.00028257,7]
[356028937,1741806645171,-297.15866743,0.00028257,7]
[356028938,1741806645181,-431.41753903,0.00028264,7]
[356028939,1741806645190,-175.51031111,0.00028264,7]
[356028940,1741806645199,-297.15866743,0.00028264,7]
[356028941,1741806645208,-150.0,0.00028267,7]
[356028942,1741806645217,-1000.0,0.00028268,2]
[356028943,1741806645227,-431.41753903,0.00028271,7]
[356028944,1741806645236,-175.51031111,0.00028271,7]
[356028945,1741806645245,-297.15866743,0.00028271,7]
[356028946,1741806645254,-431.41753903,0.00028278,7]
[356028947,1741806645390,-175.51031111,0.00028278,7]
[356028948,1741806645400,-297.15866743,0.00028278,7]
[356028949,1741806645409,-150.0,0.00028282,7]
[356028950,1741806645419,-150.0,0.00028283,2]
[356028951,1741806645427,-431.41753903,0.00028284,7]
[356028952,1741806645437,-175.51031111,0.00028284,7]
[356028953,1741806645446,-297.15866743,0.00028284,7]
[356028954,1741806645455,-431.41753903,0.00028291,7]
[356028955,1741806645464,-175.51031111,0.00028291,7]
[356028956,1741806645475,-297.15866743,0.00028291,7]
[356028957,1741806645484,-150.0,0.00028292,2]
[356028958,1741806645493,-431.41753903,0.00028298,7]
[356028959,1741806645502,-175.51031111,0.00028298,7]
[356028960,1741806645511,-297.15866743,0.00028298,7]
[356028961,1741806645520,-150.0,0.00028298,7]
[356028962,1741806645530,-150.0,0.000283,2]
[356028963,1741806645540,-150.0,0.00028302,2]
[356028964,1741806645549,-431.41753903,0.00028305,7]
[356028965,1741806645559,-175.51031111,0.00028305,7]
[356028966,1741806645568,-297.15866743,0.00028305,7]
[356028967,1741806645579,-431.41753903,0.00028311,7]
[356028968,1741806645588,-175.51031111,0.00028311,7]
[356028969,1741806645597,-297.15866743,0.00028311,7]
[356028970,1741806645606,-150.0,0.00028314,7]
[356028971,1741806645615,-431.41753903,0.00028318,7]
[356028972,1741806645624,-175.51031111,0.00028318,7]
[356028973,1741806645634,-297.15866743,0.00028318,7]
[356028974,1741806645643,-431.41753903,0.00028325,7]
[356028975,1741806645652,-175.51031111,0.00028325,7]
[356028976,1741806645661,-297.15866743,0.00028325,7]
[356028977,1741806645670,-150.80459688,0.00028329,2]
[356028978,1741806645679,-150.0,0.0002833,7]
[356028979,1741806645689,-431.41753903,0.00028332,7]
[356028980,1741806645698,-175.51031111,0.00028332,7]
[356028981,1741806645707,-297.15866743,0.00028332,7]
[356028982,1741806645716,-150.0,0.00028336,2]
[356028983,1741806645726,-431.41753903,0.00028339,7]
[356028984,1741806645738,-175.51031111,0.00028339,7]
[356028985,1741806645748,-297.15866743,0.00028339,7]
[356028986,1741806645757,-150.0,0.00028339,2]
[356028987,1741806645767,-150.0,0.00028342,2]
[356028988,1741806645776,-150.0,0.00028343,2]
[356028989,1741806645785,-431.41753903,0.00028345,7]
[356028990,1741806645795,-175.51031111,0.00028345,7]
[356028991,1741806645804,-297.15866743,0.00028345,7]
[356028992,1741806645814,-150.0,0.00028346,7]
[356028993,1741806645823,-431.41753903,0.00028352,7]
[356028994,1741806645833,-175.51031111,0.00028352,7]
[356028995,1741806645842,-297.15866743,0.00028352,7]
[356028996,1741806645851,-431.41753903,0.00028359,7]
[356028997,1741806645865,-175.51031111,0.00028359,7]
[356028998,1741806645875,-297.15866743,0.00028359,7]
[356028999,1741806645885,-150.0,0.00028359,2]
[356029000,1741806645894,-150.0,0.00028362,7]
[356029001,1741806645904,-150.0,0.00028362,7]
[356029002,1741806645913,-431.41753903,0.00028366,7]
[356029003,1741806645923,-175.51031111,0.00028366,7]
[356029004,1741806645932,-297.15866743,0.00028366,7]
[356029005,1741806645942,-150.0,0.00028368,2]
[356029006,1741806645951,-150.0,0.0002837,2]
[356029007,1741806645960,-431.41753903,0.00028372,7]
[356029008,1741806645969,-175.51031111,0.00028372,7]
[356029009,1741806645979,-297.15866743,0.00028372,7]
[356029011,1741806645988,-150.0,0.00028378,2]
[356029012,1741806645997,-150.0,0.00028378,7]
[356029013,1741806646007,-431.41753903,0.00028379,7]
[356029014,1741806646017,-175.51031111,0.00028379,7]
[356029015,1741806646026,-297.15866743,0.00028379,7]
[356029016,1741806646036,-431.41753903,0.00028386,7]
[356029017,1741806646045,-175.51031111,0.00028386,7]
[356029018,1741806646054,-297.15866743,0.00028386,7]
[356029019,1741806646064,-1568.0,0.00028388,2]
[356029020,1741806646073,-431.41753903,0.00028393,7]
[356029021,1741806646082,-175.51031111,0.00028393,7]
[356029022,1741806646092,-297.15866743,0.00028393,7]
[356029023,1741806646101,-150.0,0.00028393,2]
[356029024,1741806646110,-150.0,0.00028394,7]
[356029025,1741806646120,-150.0,0.00028395,2]
[356029026,1741806646130,-150.0,0.00028399,2]
[356029027,1741806646139,-431.41753903,0.00028399,7]
[356029028,1741806646149,-175.51031111,0.00028399,7]
[356029029,1741806646158,-297.15866743,0.00028399,7]
[356029030,1741806646167,-150.0,0.00028401,2]
[356029031,1741806646177,-161.01212656,0.00028402,2]
[356029032,1741806646187,-150.0,0.00028406,2]
[356029033,1741806646196,-431.41753903,0.00028406,7]
[356029034,1741806646205,-175.51031111,0.00028406,7]
[356029035,1741806646214,-297.15866743,0.00028406,7]
[356029036,1741806646224,-150.0,0.0002841,7]
[356029037,1741806646233,-150.0,0.00028412,2]
[356029038,1741806646242,-431.41753903,0.00028413,7]
[356029039,1741806646251,-175.51031111,0.00028413,7]
[356029040,1741806646261,-297.15866743,0.00028413,7]
[356029041,1741806646270,-150.0,0.00028413,2]
[356029042,1741806646279,-431.41753903,0.0002842,7]
[356029043,1741806646288,-175.51031111,0.0002842,7]
[356029044,1741806646298,-297.15866743,0.0002842,7]
[356029046,1741806646312,-150.0,0.0002842,2]
[356029048,1741806646322,-150.0,0.00028422,2]
[356029050,1741806646331,-150.0,0.00028426,7]
[356029052,1741806646340,-431.41753903,0.00028426,7]
[356029054,1741806646350,-175.51031111,0.00028426,7]
[356029055,1741806646360,-297.15866743,0.00028426,7]
[356029056,1741806646369,-1000.0,0.00028427,2]
[356029058,1741806646381,-1000.0,0.00028431,2]
[356029061,1741806646390,-1000.0,0.00028432,2]
[356029062,1741806646400,-431.41753903,0.00028433,7]
[356029063,1741806646409,-175.51031111,0.00028433,7]
[356029064,1741806646419,-297.15866743,0.00028433,7]
[356029065,1741806646428,-175.51031111,0.0002844,7]
[356029067,1741806646437,-297.15866743,0.0002844,7]
[356029069,1741806646446,-150.0,0.00028442,7]
[356029071,1741806646455,-175.51031111,0.00028447,7]
[356029073,1741806646464,-297.15866743,0.00028447,7]
[356029075,1741806646474,-175.51031111,0.00028454,7]
[356029077,1741806646483,-297.15866743,0.00028454,7]
[356029079,1741806646493,-150.0,0.00028458,7]
[356029081,1741806646502,-150.0,0.0002846,2]
[356029083,1741806646513,-175.51031111,0.0002846,7]
[356029085,1741806646523,-297.15866743,0.0002846,7]
[356029087,1741806646532,-175.51031111,0.00028467,7]
[356029089,1741806646541,-297.15866743,0.00028467,7]
[356029091,1741806646550,-175.51031111,0.00028474,7]
[356029093,1741806646559,-150.0,0.00028474,7]
[356029095,1741806646569,-297.15866743,0.00028474,7]
[356029097,1741806646579,-150.0,0.00028474,7]
[356029099,1741806646588,-175.51031111,0.00028481,7]
[356029101,1741806646597,-297.15866743,0.00028481,7]
[356029104,1741806646607,-175.51031111,0.00028487,7]
[356029106,1741806646617,-297.15866743,0.00028487,7]
[356029107,1741806646626,-150.0,0.00028488,2]
[356029109,1741806646635,-150.0,0.0002849,7]
[356029111,1741806646644,-175.51031111,0.00028494,7]
[356029113,1741806646653,-297.15866743,0.00028494,7]
[356029115,1741806646663,-3000.0,0.000285,2]
[356029117,1741806646672,-250.559264,0.000285,17]
[356029119,1741806646681,-175.51031111,0.00028501,7]
[356029121,1741806646690,-297.15866743,0.00028501,7]
[356029123,1741806646699,-150.0,0.00028506,7]
[356029125,1741806646708,-150.0,0.00028507,2]
[356029127,1741806646718,-175.51031111,0.00028508,7]
[356029129,1741806646727,-297.15866743,0.00028508,7]
[356029131,1741806646736,-175.51031111,0.00028514,7]
[356029133,1741806646745,-297.15866743,0.00028514,7]
[356029135,1741806646755,-175.51031111,0.00028521,7]
[356029137,1741806646764,-297.15866743,0.00028521,7]
[356029139,1741806646773,-150.0,0.00028522,7]
[356029141,1741806646782,-175.51031111,0.00028528,7]
[356029143,1741806646791,-297.15866743,0.00028528,7]
[356029145,1741806646801,-150.0,0.0002853,7]
[356029147,1741806646811,-150.0,0.00028531,2]
[356029149,1741806646820,-175.51031111,0.00028535,7]
[356029151,1741806646830,-297.15866743,0.00028535,7]
[356029153,1741806646839,-150.0,0.00028538,7]
[356029155,1741806646848,-175.51031111,0.00028541,7]
[356029157,1741806646857,-297.15866743,0.00028541,7]
[356029159,1741806646866,-175.51031111,0.00028548,7]
[356029161,1741806646876,-297.15866743,0.00028548,7]
[356029163,1741806646885,-150.0,0.00028554,7]
[356029165,1741806646895,-150.0,0.00028554,2]
[356029167,1741806646904,-175.51031111,0.00028555,7]
[356029169,1741806646913,-297.15866743,0.00028555,7]
[356029170,1741806646923,-175.51031111,0.00028562,7]
[356029171,1741806646932,-297.15866743,0.00028562,7]
[356029172,1741806646941,-150.0,0.00028565,2]
[356029173,1741806646951,-175.51031111,0.00028568,7]
[356029174,1741806646960,-297.15866743,0.00028568,7]
[356029175,1741806646970,-150.0,0.00028569,2]
[356029176,1741806646979,-150.0,0.00028569,7]
[356029177,1741806646989,-794.3089422,0.0002857,2]
[356029178,1741806646998,-175.51031111,0.00028575,7]
[356029179,1741806647007,-297.15866743,0.00028575,7]
[356029180,1741806647017,-175.51031111,0.00028582,7]
[356029181,1741806647026,-297.15866743,0.00028582,7]
[356029182,1741806647035,-150.0,0.00028585,7]
[356029183,1741806647045,-175.51031111,0.00028589,7]
[356029184,1741806647054,-297.15866743,0.00028589,7]
[356029185,1741806647064,-150.0,0.00028589,2]
[356029186,1741806647074,-175.51031111,0.00028596,7]
[356029187,1741806647083,-297.15866743,0.00028596,7]
[356029188,1741806647093,-150.0,0.00028601,7]
[356029189,1741806647102,-175.51031111,0.00028602,7]
[356029190,1741806647111,-297.15866743,0.00028602,7]
[356029191,1741806647120,-261.90630393,0.00028603,2]
[356029192,1741806647129,-6753.86738771,0.00028603,2]
[356029193,1741806647139,-868.64041292,0.00028605,2]
[356029194,1741806647148,-150.0,0.00028607,2]
[356029195,1741806647157,-175.51031111,0.00028609,7]
[356029196,1741806647167,-297.15866743,0.00028609,7]
[356029197,1741806647176,-175.51031111,0.00028616,7]
[356029198,1741806647186,-297.15866743,0.00028616,7]
[356029199,1741806647195,-150.0,0.00028616,2]
[356029200,1741806647205,-150.0,0.00028617,7]
[356029201,1741806647214,-150.0,0.00028622,2]
[356029202,1741806647224,-175.51031111,0.00028623,7]
[356029203,1741806647234,-297.15866743,0.00028623,7]
[356029204,1741806647243,-175.51031111,0.00028629,7]
[356029205,1741806647253,-297.15866743,0.00028629,7]
[356029206,1741806647262,-150.0,0.0002863,2]
[356029207,1741806647271,-150.0,0.00028633,7]
[356029208,1741806647280,-175.51031111,0.00028636,7]
[356029209,1741806647290,-297.15866743,0.00028636,7]
[356029210,1741806647299,-360.2,0.00028641,2]
[356029211,1741806647314,-175.51031111,0.00028643,7]
[356029212,1741806647323,-297.15866743,0.00028643,7]
[356029213,1741806647333,-150.0,0.00028649,7]
[356029214,1741806647343,-175.51031111,0.0002865,7]
[356029215,1741806647352,-297.15866743,0.0002865,7]
[356029216,1741806647361,-175.51031111,0.00028656,7]
[356029217,1741806647373,-297.15866743,0.00028656,7]
[356029218,1741806647384,-175.51031111,0.00028663,7]
[356029219,1741806647393,-297.15866743,0.00028663,7]
[356029220,1741806647402,-150.0,0.00028665,7]
[356029221,1741806647538,-175.51031111,0.0002867,7]
[356029222,1741806647548,-297.15866743,0.0002867,7]
[356029223,1741806647558,-400.0,0.0002867,2]
[356029224,1741806647570,-400.0,0.0002867,2]
[356029225,1741806647580,-150.0,0.0002867,2]
[356029226,1741806647589,-1568.0,0.00028675,2]
[356029227,1741806647598,-175.51031111,0.00028677,7]
[356029228,1741806647607,-297.15866743,0.00028677,7]
[356029229,1741806647616,-150.0,0.00028681,7]
[356029230,1741806647625,-175.51031111,0.00028683,7]
[356029231,1741806647634,-297.15866743,0.00028683,7]
[356029232,1741806647643,-175.51031111,0.0002869,7]
[356029233,1741806647652,-297.15866743,0.0002869,7]
[356029234,1741806647662,-500.0,0.00028697,2]
[356029235,1741806647671,-1450.11,0.00028697,2]
[356029236,1741806647680,-175.51031111,0.00028697,7]
[356029237,1741806647691,-278.75087208,0.00028697,7]
[356029238,1741806647700,-297.15866743,0.00028697,7]
[356029239,1741806647709,-285.35900902,0.00028697,7]
[356029240,1741806647719,-276.31167056,0.00028697,7]
[356029241,1741806647727,-500.0,0.00028697,30]
[356029242,1741806647738,-500.63388032,0.00028697,30]
[356029243,1741806647747,-150.0,0.00028697,30]
[356029244,1741806647757,-271.55230654,0.00028697,30]
[356029245,1741806647766,-500.0,0.00028697,30]
[356029246,1741806647775,-506.0411148,0.00028697,30]
[356029247,1741806647784,-500.0,0.00028697,30]
[356029248,1741806647794,-500.0,0.00028697,30]
[356029249,1741806647803,-500.99165857,0.00028697,30]
[356029250,1741806647813,-500.0,0.00028697,30]
[356029251,1741806647823,-500.0,0.00028697,30]
[356029252,1741806647831,-500.0,0.00028697,30]
[356029253,1741806647841,-500.0,0.00028697,30]
[356029254,1741806647850,-500.0,0.00028697,30]
[356029255,1741806647859,-500.0,0.00028697,30]
[356029256,1741806647868,-500.0,0.00028697,30]
[356029257,1741806647877,-500.0,0.00028697,30]
[356029258,1741806647887,-500.0,0.00028697,30]
[356029259,1741806647896,-500.0,0.00028697,30]
[356029260,1741806647906,-500.0,0.00028697,30]
[356029261,1741806647915,-932.67257796,0.00028697,30]
[356029262,1741806647925,-500.0,0.00028697,30]
[356029263,1741806647933,-500.0,0.00028697,30]
[356029264,1741806647943,-871.78142477,0.00028697,30]
[356029265,1741806647952,-657.5831827,0.00028699,2]
[356029266,1741806647961,-572.1790783,0.00028699,2]
[356029267,1741806647970,-486.774974,0.00028699,2]
[356029268,1741806647980,-401.3708697,0.00028699,2]
[356029269,1741806647989,-315.9667653,0.00028699,2]
[356029270,1741806647999,-230.562661,0.00028699,2]
[356029271,1741806648008,-401.9654768,0.00028699,2]
[356029272,1741806648017,-2708.43,0.000287,2]
[356029273,1741806648026,-290.398397,0.00028703,37]
[356029274,1741806648035,-765.20042571,0.00028703,15]
[356029275,1741806648044,-132327.33777461,0.00028703,37]
[356029276,1741806648053,-280116.25822768,0.00028703,30]
[356029277,1741806648075,-2049.05889236,0.00027693,4]
[356029278,1741806648084,-311.94110764,0.00028703,30]
[356029279,1741806648096,-8526.16701429,0.00028703,30]
[356029280,1741806648136,-136455.83362295,0.00028703,30]
[356029281,1741806648148,-1730.84596,0.00028703,30]
[356029282,1741806648159,-8372.33,0.00028703,30]
[356029283,1741806648171,-310080.80856484,0.00028703,30]
[356029284,1741806648183,-1223.25882463,0.00028703,30]
[356029285,1741806649105,-775.0,0.0001,2]
[356029286,1741806649116,-150.0,0.00028362,2]
[356029287,1741806649126,-150.0,0.00028468,2]
[356029288,1741806649137,-150.0,0.00028491,2]
[356029289,1741806649146,-150.0,0.000286,2]
[356029290,1741806649156,-150.0,0.00028624,2]
[356029291,1741806649166,-150.0,0.00028642,2]
[356029292,1741806649175,-150.0,0.00028668,2]
[356029293,1741806649185,-9378.86218076,0.00028703,30]
[356029294,1741806649196,-161072.55025473,0.00028703,30]
[356029295,1741806651038,-1805.85709003,0.00011978,2]
[356029296,1741806651047,-232.75,0.000249,7]
[356029297,1741806651057,-150.0,0.0002823,2]
[356029298,1741806651068,-150.0,0.00028232,2]
[356029299,1741806651078,-150.0,0.00028245,2]
[356029300,1741806651096,-150.0,0.00028249,2]
[356029301,1741806651106,-150.0,0.0002826,2]
[356029302,1741806651115,-150.0,0.00028283,2]
[356029303,1741806651125,-150.0,0.00028385,2]
[356029304,1741806651134,-150.0,0.00028393,2]
[356029305,1741806651143,-150.0,0.00028407,2]
[356029306,1741806651153,-150.0,0.00028407,2]
[356029307,1741806651162,-150.0,0.00028422,2]
[356029308,1741806651171,-150.0,0.00028425,2]
[356029309,1741806651181,-150.0,0.00028428,2]
[356029310,1741806651190,-150.0,0.00028432,2]
[356029311,1741806651203,-150.0,0.00028433,2]
[356029312,1741806651217,-150.0,0.00028435,2]
[356029313,1741806651232,-150.0,0.00028442,2]
[356029314,1741806651246,-150.0,0.00028449,2]
[356029315,1741806651256,-150.0,0.00028451,2]
[356029316,1741806651265,-150.0,0.00028459,2]
[356029317,1741806651275,-150.0,0.00028473,2]
[356029318,1741806651285,-150.0,0.00028482,2]
[356029319,1741806651294,-156.60790267,0.0002851,2]